fUST/lending_fUST_20250208
["ID","MTS","AMOUNT","RATE_DAILY","PERIOD"]
[352197155,1738991440630,-500.0,0.00010958,2]
[352197156,1738991440639,-500.0,0.00010958,2]
[352197157,1738991440648,-500.0,0.00010958,2]
[352197158,1738991440657,-593.92,0.00010958,2]
[352197159,1738991440666,-500.0,0.00010958,2]
[352197160,1738991440675,-500.0,0.00010958,2]
[352197161,1738991440685,-500.0,0.00010958,2]
[352197162,1738991440695,-500.0,0.00010958,2]
[352197163,1738991440705,-500.0,0.00010958,2]
[352197164,1738991440715,-500.0,0.00010958,2]
[352197165,1738991440725,-500.0,0.00010958,2]
[352197166,1738991440735,-501.87035438,0.00010958,2]
[352197167,1738991440744,-500.0,0.00010958,2]
[352197168,1738991440753,-500.0,0.00010958,2]
[352197169,1738991440763,-500.0,0.00010958,2]
[352197170,1738991440773,-500.0,0.00010958,2]
[352197171,1738991440783,-500.0,0.00010958,2]
[352197172,1738991440792,-500.32287701,0.00010958,2]
[352197173,1738991440802,-508.99181733,0.00010958,2]
[352197174,1738991440812,-500.0,0.00010958,2]
[352197175,1738991440821,-500.0,0.00010958,2]
[352197176,1738991440831,-500.0,0.00010958,2]
[352197177,1738991440840,-500.0,0.00010958,2]
[352197178,1738991440850,-505.27644101,0.00010958,2]
[352197179,1738991440860,-500.0,0.00010958,2]
[352197180,1738991440869,-500.0,0.00010958,2]
[352197181,1738991440879,-500.0,0.00010958,2]
[352197182,1738991440889,-500.0,0.00010958,2]
[352197183,1738991440899,-500.0,0.00010958,2]
[352197184,1738991440912,-500.0,0.00010958,2]
[352197185,1738991440921,-500.0,0.00010958,2]
[352197186,1738991440931,-554.79330933,0.00010958,2]
[352197187,1738991440950,-500.0,0.00010958,2]
[352197188,1738991440959,-500.0,0.00010958,2]
[352197189,1738991440969,-500.0,0.00010958,2]
[352197190,1738991440980,-500.0,0.00010958,2]
[352197191,1738991440990,-500.0,0.00010958,2]
[352197192,1738991440999,-500.0,0.00010958,2]
[352197193,1738991441009,-500.0,0.00010958,2]
[352197194,1738991441019,-500.0,0.00010958,2]
[352197195,1738991441028,-500.0,0.00010958,2]
[352197196,1738991441039,-500.0,0.00010958,2]
[352197197,1738991441048,-500.0,0.00010958,2]
[352197198,1738991441058,-500.0,0.00010958,2]
[352197199,1738991441067,-304.71720517,0.00010958,2]
[352197200,1738991441077,-500.0,0.00010958,2]
[352197201,1738991441087,-500.0,0.00010958,2]
[352197202,1738991441096,-474.12164513,0.00010958,2]
[352197203,1738991441105,-500.0,0.00010958,2]
[352197204,1738991441114,-500.0,0.00010958,2]
[352197205,1738991441123,-185.44803579,0.00010958,2]
[352197206,1738991441133,-500.0,0.00010958,2]
[352197207,1738991441143,-500.0,0.00010958,2]
[352197208,1738991441152,-500.0,0.00010958,2]
[352197209,1738991441162,-500.0,0.00010958,2]
[352197210,1738991441171,-501.47837161,0.00010958,2]
[352197211,1738991441181,-501.90806868,0.00010958,2]
[352197212,1738991441190,-206.32632135,0.00010958,2]
[352197213,1738991441202,-500.0,0.00010958,2]
[352197214,1738991441212,-500.0,0.00010958,2]
[352197215,1738991441223,-500.0,0.00010958,2]
[352197216,1738991441234,-500.0,0.00010958,2]
[352197217,1738991441244,-500.0,0.00010958,2]
[352197218,1738991441253,-500.72600182,0.00010958,2]
[352197219,1738991441263,-500.0,0.00010958,2]
[352197220,1738991441273,-1290.85,0.00010958,2]
[352197221,1738991441282,-502.33931398,0.00010958,2]
[352197222,1738991441292,-502.45607472,0.00010958,2]
[352197223,1738991441304,-500.0,0.00010958,2]
[352197224,1738991441314,-500.0,0.00010958,2]
[352197225,1738991441325,-313.30447206,0.00010958,2]
[352197226,1738991441335,-500.0,0.00010958,2]
[352197227,1738991441344,-500.0,0.00010958,2]
[352197228,1738991441354,-500.0,0.00010958,2]
[352197229,1738991441364,-500.0,0.00010958,2]
[352197230,1738991441373,-500.0,0.00010958,2]
[352197231,1738991441382,-500.0,0.00010958,2]
[352197232,1738991441392,-500.0,0.00010958,2]
[352197233,1738991441401,-500.0,0.00010958,2]
[352197234,1738991441411,-500.0,0.00010958,2]
[352197235,1738991441420,-503.72750539,0.00010958,2]
[352197236,1738991441430,-500.0,0.00010958,2]
[352197237,1738991441439,-500.0,0.00010958,2]
[352197238,1738991441448,-500.0,0.00010958,2]
[352197239,1738991441457,-500.0,0.00010958,2]
[352197240,1738991441466,-500.0,0.00010958,2]
[352197241,1738991441476,-500.0,0.00010958,2]
[352197242,1738991441485,-500.0,0.00010958,2]
[352197243,1738991441495,-500.0,0.00010958,2]
[352197244,1738991441504,-500.0,0.00010958,2]
[352197245,1738991441513,-501.38011532,0.00010958,2]
[352197246,1738991441523,-500.0,0.00010958,2]
[352197247,1738991441532,-500.0,0.00010958,2]
[352197248,1738991441541,-500.75016199,0.00010958,2]
[352197249,1738991441550,-445.07656642,0.00010958,2]
[352197250,1738991441559,-406.06808866,0.00010958,2]
[352197251,1738991441569,-500.0,0.00010958,2]
[352197252,1738991441578,-1322.28,0.00010958,2]
[352197253,1738991441587,-500.0,0.00010958,2]
[352197254,1738991441595,-954.32,0.00010958,2]
[352197255,1738991441605,-500.0,0.00010958,2]
[352197256,1738991441614,-500.0,0.00010958,2]
[352197257,1738991441623,-500.0,0.00010958,2]
[352197258,1738991441633,-500.0,0.00010958,2]
[352197259,1738991441642,-500.0,0.00010958,2]
[352197260,1738991441652,-503.58949611,0.00010958,2]
[352197261,1738991441662,-502.06780739,0.00010958,2]
[352197262,1738991441672,-500.0,0.00010958,2]
[352197263,1738991441682,-500.0,0.00010958,2]
[352197264,1738991441691,-500.0,0.00010958,2]
[352197265,1738991441701,-500.0,0.00010958,2]
[352197266,1738991441710,-500.93684788,0.00010958,2]
[352197267,1738991441720,-500.0,0.00010958,2]
[352197268,1738991441731,-500.0,0.00010958,2]
[352197269,1738991441740,-500.0,0.00010958,2]
[352197270,1738991441749,-500.0,0.00010958,2]
[352197271,1738991441758,-500.0,0.00010958,2]
[352197272,1738991441767,-500.0,0.00010958,2]
[352197273,1738991441777,-500.0,0.00010958,2]
[352197274,1738991441787,-500.0,0.00010958,2]
[352197275,1738991441796,-500.0,0.00010958,2]
[352197276,1738991441806,-500.0,0.00010958,2]
[352197277,1738991441815,-500.87630365,0.00010958,2]
[352197278,1738991441824,-500.0,0.00010958,2]
[352197279,1738991441833,-500.0,0.00010958,2]
[352197280,1738991441842,-552.64499874,0.00010958,2]
[352197281,1738991441851,-500.0,0.00010958,2]
[352197282,1738991441861,-890.41,0.00010958,2]
[352197283,1738991441870,-503.05729838,0.00010958,2]
[352197284,1738991441879,-500.0,0.00010958,2]
[352197285,1738991441889,-501.87586055,0.00010958,2]
[352197286,1738991441899,-500.0,0.00010958,2]
[352197287,1738991441912,-500.0,0.00010958,2]
[352197288,1738991441922,-500.0,0.00010958,2]
[352197289,1738991441931,-500.0,0.00010958,2]
[352197290,1738991441941,-500.0,0.00010958,2]
[352197291,1738991441951,-500.0,0.00010958,2]
[352197292,1738991441960,-500.0,0.00010958,2]
[352197293,1738991441969,-500.0,0.00010958,2]
[352197294,1738991441982,-500.0,0.00010958,2]
[352197295,1738991441992,-500.0,0.00010958,2]
[352197296,1738991442001,-500.0,0.00010958,2]
[352197297,1738991442012,-501.07879346,0.00010958,2]
[352197298,1738991442030,-500.0,0.00010958,2]
[352197299,1738991442041,-500.0,0.00010958,2]
[352197300,1738991442051,-579.96,0.00010958,2]
[352197301,1738991442061,-460.19831029,0.00010958,2]
[352197302,1738991442071,-500.0,0.00010958,2]
[352197303,1738991442081,-500.0,0.00010958,2]
[352197304,1738991442091,-508.59585944,0.00010958,2]
[352197305,1738991442100,-500.0,0.00010958,2]
[352197306,1738991442110,-389.21503979,0.00010958,2]
[352197307,1738991442120,-500.0,0.00010958,2]
[352197308,1738991442129,-503.4425451,0.00010958,2]
[352197309,1738991442139,-500.0,0.00010958,2]
[352197310,1738991442149,-500.0,0.00010958,2]
[352197311,1738991442158,-500.0,0.00010958,2]
[352197312,1738991442168,-500.0,0.00010958,2]
[352197313,1738991442177,-500.0,0.00010958,2]
[352197314,1738991442187,-501.81853841,0.00010958,2]
[352197315,1738991442196,-536.46389282,0.00010958,2]
[352197316,1738991442206,-500.0,0.00010958,2]
[352197317,1738991442216,-500.0,0.00010958,2]
[352197318,1738991442228,-1275.48,0.00010958,2]
[352197319,1738991442237,-500.0,0.00010958,2]
[352197320,1738991442246,-504.10406928,0.00010958,2]
[352197321,1738991442255,-500.0,0.00010958,2]
[352197322,1738991442264,-501.50846513,0.00010958,2]
[352197323,1738991442274,-500.0,0.00010958,2]
[352197324,1738991442285,-500.0,0.00010958,2]
[352197325,1738991442294,-500.0,0.00010958,2]
[352197326,1738991442304,-500.0,0.00010958,2]
[352197327,1738991442314,-500.0,0.00010958,2]
[352197328,1738991442323,-500.0,0.00010958,2]
[352197329,1738991442332,-500.0,0.00010958,2]
[352197330,1738991442342,-500.0,0.00010958,2]
[352197331,1738991442352,-500.0,0.00010958,2]
[352197332,1738991442361,-500.0,0.00010958,2]
[352197333,1738991442371,-500.0,0.00010958,2]
[352197334,1738991442381,-277.08183382,0.00010958,2]
[352197335,1738991442391,-500.0,0.00010958,2]
[352197336,1738991442400,-500.0,0.00010958,2]
[352197337,1738991442410,-500.0,0.00010958,2]
[352197338,1738991442419,-500.0,0.00010958,2]
[352197339,1738991442429,-500.0,0.00010958,2]
[352197340,1738991442438,-500.0,0.00010958,2]
[352197341,1738991442451,-500.0,0.00010958,2]
[352197342,1738991442472,-500.0,0.00010958,2]
[352197343,1738991442489,-500.0,0.00010958,2]
[352197344,1738991442499,-2653.48,0.00010958,2]
[352197345,1738991442508,-500.0,0.00010958,2]
[352197346,1738991442517,-500.0,0.00010958,2]
[352197347,1738991442527,-500.0,0.00010958,2]
[352197348,1738991442536,-500.0,0.00010958,2]
[352197349,1738991442545,-1536.82,0.00010958,2]
[352197350,1738991442555,-500.0,0.00010958,2]
[352197351,1738991442564,-500.0,0.00010958,2]
[352197352,1738991442573,-245.41839419,0.00010958,2]
[352197353,1738991442583,-500.0,0.00010958,2]
[352197354,1738991442593,-500.0,0.00010958,2]
[352197355,1738991442602,-501.18379253,0.00010958,2]
[352197356,1738991442612,-505.99980927,0.00010958,2]
[352197357,1738991442621,-500.0,0.00010958,2]
[352197358,1738991442631,-866.25,0.00010958,2]
[352197359,1738991442640,-500.0,0.00010958,2]
[352197360,1738991442649,-500.0,0.00010958,2]
[352197361,1738991442659,-500.0,0.00010958,2]
[352197362,1738991442669,-500.0,0.00010958,2]
[352197363,1738991442680,-259.51906623,0.00010958,2]
[352197364,1738991442689,-302.78814279,0.00010958,2]
[352197365,1738991442699,-500.0,0.00010958,2]
[352197366,1738991442709,-658.86,0.00010958,2]
[352197367,1738991442718,-500.0,0.00010958,2]
[352197368,1738991442729,-500.0,0.00010958,2]
[352197369,1738991442739,-500.0,0.00010958,2]
[352197370,1738991442748,-939.42,0.00010958,2]
[352197371,1738991442757,-500.0,0.00010958,2]
[352197372,1738991442766,-500.0,0.00010958,2]
[352197373,1738991442775,-500.0,0.00010958,2]
[352197374,1738991442785,-500.0,0.00010958,2]
[352197375,1738991442795,-500.0,0.00010958,2]
[352197376,1738991442804,-500.0,0.00010958,2]
[352197377,1738991442814,-1115.0,0.00010958,2]
[352197378,1738991442824,-505.5855474,0.00010958,2]
[352197379,1738991442833,-500.0,0.00010958,2]
[352197380,1738991442843,-500.0,0.00010958,2]
[352197381,1738991442852,-500.0,0.00010958,2]
[352197382,1738991442861,-596.66,0.00010958,2]
[352197383,1738991442872,-1320.42,0.00010958,2]
[352197385,1738991442881,-500.0,0.00010958,2]
[352197387,1738991442891,-500.0,0.00010958,2]
[352197388,1738991442903,-500.0,0.00010958,2]
[352197389,1738991442914,-500.0,0.00010958,2]
[352197390,1738991442923,-1026.56,0.00010958,2]
[352197391,1738991442932,-500.0,0.00010958,2]
[352197392,1738991442941,-500.0,0.00010958,2]
[352197393,1738991442953,-500.0,0.00010958,2]
[352197394,1738991442963,-500.0,0.00010958,2]
[352197395,1738991442973,-500.78307202,0.00010958,2]
[352197396,1738991442983,-299.34697779,0.00010958,2]
[352197397,1738991442993,-500.0,0.00010958,2]
[352197398,1738991443003,-2631.16,0.00010958,2]
[352197399,1738991443012,-509.43034823,0.00010958,2]
[352197400,1738991443022,-500.0,0.00010958,2]
[352197401,1738991443033,-500.0,0.00010958,2]
[352197402,1738991443049,-500.0,0.00010958,2]
[352197403,1738991443059,-500.0,0.00010958,2]
[352197404,1738991443070,-500.0,0.00010958,2]
[352197405,1738991443080,-501.22811931,0.00010958,2]
[352197406,1738991443091,-862.34,0.00010958,2]
[352197407,1738991443101,-500.0,0.00010958,2]
[352197408,1738991443112,-500.0,0.00010958,2]
[352197409,1738991443121,-500.0,0.00010958,2]
[352197410,1738991443131,-500.0,0.00010958,2]
[352197411,1738991443140,-1146.43,0.00010958,2]
[352197412,1738991443150,-500.0,0.00010958,2]
[352197413,1738991443159,-500.0,0.00010958,2]
[352197414,1738991443169,-500.0,0.00010958,2]
[352197415,1738991443178,-658.88,0.00010958,2]
[352197416,1738991443188,-1093.05,0.00010958,2]
[352197417,1738991443197,-500.0,0.00010958,2]
[352197418,1738991443206,-500.0,0.00010958,2]
[352197420,1738991443216,-506.01293089,0.00010958,2]
[352197421,1738991443225,-538.64,0.00010958,2]
[352197422,1738991443235,-10260.36,0.00010958,2]
[352197423,1738991443244,-500.0,0.00010958,2]
[352197424,1738991443253,-500.0,0.00010958,2]
[352197425,1738991443264,-500.0,0.00010958,2]
[352197426,1738991443273,-500.0,0.00010958,2]
[352197427,1738991443283,-500.0,0.00010958,2]
[352197428,1738991443293,-500.0,0.00010958,2]
[352197429,1738991443303,-500.0,0.00010958,2]
[352197430,1738991443312,-500.0,0.00010958,2]
[352197431,1738991443322,-500.0,0.00010958,2]
[352197432,1738991443332,-500.0,0.00010958,2]
[352197433,1738991443341,-336.50399263,0.00010958,2]
[352197434,1738991443350,-500.0,0.00010958,2]
[352197435,1738991443360,-500.0,0.00010958,2]
[352197436,1738991443370,-500.0,0.00010958,2]
[352197437,1738991443379,-39166.59,0.00010958,2]
[352197438,1738991443389,-500.0,0.00010958,2]
[352197439,1738991443399,-212.2651117,0.00010958,2]
[352197440,1738991443408,-500.0,0.00010958,2]
[352197441,1738991443418,-500.0,0.00010958,2]
[352197442,1738991443427,-500.0,0.00010958,2]
[352197443,1738991443576,-500.0,0.00010958,2]
[352197444,1738991443586,-3134.99,0.00010958,2]
[352197445,1738991443596,-500.0,0.00010958,2]
[352197446,1738991443606,-500.0,0.00010958,2]
[352197447,1738991443616,-256.23706644,0.00010958,2]
[352197448,1738991443625,-500.0,0.00010958,2]
[352197449,1738991443634,-500.0,0.00010958,2]
[352197450,1738991443643,-505.08,0.00010958,2]
[352197451,1738991443652,-10300.93,0.00010958,2]
[352197452,1738991443661,-10300.93,0.00010958,2]
[352197453,1738991443671,-500.0,0.00010958,2]
[352197454,1738991443680,-10300.93,0.00010958,2]
[352197455,1738991443689,-10300.93,0.00010958,2]
[352197456,1738991443699,-10300.93,0.00010958,2]
[352197457,1738991443708,-500.0,0.00010958,2]
[352197458,1738991443718,-10300.93,0.00010958,2]
[352197459,1738991443727,-10300.93,0.00010958,2]
[352197460,1738991443736,-10300.93,0.00010958,2]
[352197461,1738991443746,-10300.93,0.00010958,2]
[352197462,1738991443755,-10300.93,0.00010958,2]
[352197463,1738991443764,-194.66946926,0.00010958,2]
[352197464,1738991443774,-10300.93,0.00010958,2]
[352197465,1738991443783,-10300.93,0.00010958,2]
[352197466,1738991443792,-10300.93,0.00010958,2]
[352197467,1738991443801,-10300.93,0.00010958,2]
[352197468,1738991443811,-10300.93,0.00010958,2]
[352197469,1738991443820,-10300.93,0.00010958,2]
[352197470,1738991443830,-10300.93,0.00010958,2]
[352197471,1738991443839,-10300.93,0.00010958,2]
[352197472,1738991443850,-496.49889218,0.00010958,2]
[352197473,1738991443859,-500.0,0.00010958,2]
[352197474,1738991443868,-500.0,0.00010958,2]
[352197475,1738991443877,-500.0,0.00010958,2]
[352197476,1738991443887,-500.0,0.00010958,2]
[352197477,1738991443896,-500.0,0.00010958,2]
[352197478,1738991443909,-500.0,0.00010958,2]
[352197479,1738991443918,-1635.22,0.00010958,2]
[352197480,1738991443928,-1523.95,0.00010958,2]
[352197481,1738991443938,-500.0,0.00010958,2]
[352197482,1738991443947,-500.0,0.00010958,2]
[352197483,1738991443957,-500.0,0.00010958,2]
[352197484,1738991443966,-696.42,0.00010958,2]
[352197485,1738991443975,-501.70311074,0.00010958,2]
[352197486,1738991443985,-500.0,0.00010958,2]
[352197487,1738991443995,-514.83549926,0.00010958,2]
[352197488,1738991444004,-500.0,0.00010958,2]
[352197489,1738991444014,-921.78,0.00010958,2]
[352197490,1738991444022,-500.0,0.00010958,2]
[352197491,1738991444032,-500.0,0.00010958,2]
[352197492,1738991444041,-500.0,0.00010958,2]
[352197493,1738991444050,-1122.19,0.00010958,2]
[352197494,1738991444060,-500.0,0.00010958,2]
[352197495,1738991444070,-185.73166612,0.00010958,2]
[352197496,1738991444079,-500.0,0.00010958,2]
[352197497,1738991444089,-635.87,0.00010958,2]
[352197498,1738991444098,-500.0,0.00010958,2]
[352197499,1738991444107,-500.0,0.00010958,2]
[352197500,1738991444116,-500.0,0.00010958,2]
[352197501,1738991444126,-500.0,0.00010958,2]
[352197502,1738991444135,-500.0,0.00010958,2]
[352197503,1738991444144,-500.0,0.00010958,2]
[352197504,1738991444154,-500.0,0.00010958,2]
[352197505,1738991444164,-506.95382095,0.00010958,2]
[352197506,1738991444173,-500.0,0.00010958,2]
[352197507,1738991444183,-686.01,0.00010958,2]
[352197508,1738991444192,-500.0,0.00010958,2]
[352197509,1738991444202,-500.0,0.00010958,2]
[352197510,1738991444211,-500.0,0.00010958,2]
[352197511,1738991444221,-500.0,0.00010958,2]
[352197512,1738991444232,-500.0,0.00010958,2]
[352197513,1738991444241,-500.0,0.00010958,2]
[352197514,1738991444251,-500.0,0.00010958,2]
[352197515,1738991444261,-500.0,0.00010958,2]
[352197516,1738991444271,-168.65387796,0.00010958,2]
[352197517,1738991444281,-562.14646434,0.00010958,2]
[352197518,1738991444290,-500.0,0.00010958,2]
[352197519,1738991444300,-500.0,0.00010958,2]
[352197520,1738991444309,-500.0,0.00010958,2]
[352197521,1738991444319,-500.0,0.00010958,2]
[352197522,1738991444328,-500.0,0.00010958,2]
[352197523,1738991444338,-500.0,0.00010958,2]
[352197524,1738991444347,-500.0,0.00010958,2]
[352197525,1738991444356,-500.0,0.00010958,2]
[352197526,1738991444366,-502.31845736,0.00010958,2]
[352197527,1738991444375,-500.0,0.00010958,2]
[352197528,1738991444385,-500.0,0.00010958,2]
[352197529,1738991444394,-500.0,0.00010958,2]
[352197530,1738991444403,-500.0,0.00010958,2]
[352197531,1738991444413,-500.0,0.00010958,2]
[352197532,1738991444422,-500.0,0.00010958,2]
[352197533,1738991444432,-500.59712672,0.00010958,2]
[352197534,1738991444441,-500.0,0.00010958,2]
[352197535,1738991444451,-500.0,0.00010958,2]
[352197536,1738991444460,-180.05426533,0.00010958,2]
[352197537,1738991444470,-1370.62,0.00010958,2]
[352197538,1738991444479,-500.0,0.00010958,2]
[352197539,1738991444488,-570.19,0.00010958,2]
[352197540,1738991444498,-503.49450858,0.00010958,2]
[352197541,1738991444508,-500.0,0.00010958,2]
[352197542,1738991444517,-500.0,0.00010958,2]
[352197543,1738991444528,-500.0,0.00010958,2]
[352197544,1738991444537,-500.0,0.00010958,2]
[352197545,1738991444547,-985.03,0.00010958,2]
[352197546,1738991444556,-500.0,0.00010958,2]
[352197547,1738991444566,-2173.41,0.00010958,2]
[352197548,1738991444575,-500.0,0.00010958,2]
[352197549,1738991444585,-500.0,0.00010958,2]
[352197550,1738991444595,-2448.18,0.00010958,2]
[352197551,1738991444605,-500.0,0.00010958,2]
[352197552,1738991444614,-501.73210292,0.00010958,2]
[352197553,1738991444623,-4445.89,0.00010958,2]
[352197554,1738991444633,-500.0,0.00010958,2]
[352197555,1738991444643,-504.73366733,0.00010958,2]
[352197556,1738991444652,-500.0,0.00010958,2]
[352197557,1738991444661,-500.0,0.00010958,2]
[352197558,1738991444670,-500.0,0.00010958,2]
[352197559,1738991444680,-598.62,0.00010958,2]
[352197560,1738991444689,-500.0,0.00010958,2]
[352197561,1738991444698,-500.0,0.00010958,2]
[352197562,1738991444708,-500.0,0.00010958,2]
[352197563,1738991444717,-812.58,0.00010958,2]
[352197564,1738991444726,-1267.06,0.00010958,2]
[352197565,1738991444738,-500.0,0.00010958,2]
[352197566,1738991444749,-500.0,0.00010958,2]
[352197567,1738991444758,-500.0,0.00010958,2]
[352197568,1738991444767,-500.0,0.00010958,2]
[352197569,1738991444777,-329.28606819,0.00010958,2]
[352197570,1738991444787,-500.0,0.00010958,2]
[352197571,1738991444797,-500.0,0.00010958,2]
[352197572,1738991444806,-500.0,0.00010958,2]
[352197573,1738991444816,-500.0,0.00010958,2]
[352197574,1738991444825,-500.0,0.00010958,2]
[352197575,1738991444835,-500.0,0.00010958,2]
[352197576,1738991444845,-503.87945351,0.00010958,2]
[352197577,1738991444856,-500.0,0.00010958,2]
[352197578,1738991444865,-500.0,0.00010958,2]
[352197579,1738991444874,-920.4,0.00010958,2]
[352197580,1738991444884,-500.0,0.00010958,2]
[352197581,1738991444895,-500.0,0.00010958,2]
[352197582,1738991444910,-3402.67,0.00010958,2]
[352197583,1738991444919,-500.0,0.00010958,2]
[352197584,1738991444929,-500.0,0.00010958,2]
[352197585,1738991444938,-500.0,0.00010958,2]
[352197586,1738991444950,-500.0,0.00010958,2]
[352197587,1738991444960,-1084.22,0.00010958,2]
[352197588,1738991444969,-500.0,0.00010958,2]
[352197589,1738991444981,-530.66,0.00010958,2]
[352197590,1738991444991,-500.0,0.00010958,2]
[352197591,1738991445000,-500.0,0.00010958,2]
[352197592,1738991445010,-520.2,0.00010958,2]
[352197593,1738991445020,-500.0,0.00010958,2]
[352197594,1738991445029,-583.81,0.00010958,2]
[352197595,1738991445039,-512.22625912,0.00010958,2]
[352197596,1738991445048,-500.0,0.00010958,2]
[352197597,1738991445057,-500.0,0.00010958,2]
[352197598,1738991445067,-500.0,0.00010958,2]
[352197599,1738991445077,-500.0,0.00010958,2]
[352197600,1738991445086,-2334.23,0.00010958,2]
[352197601,1738991445096,-500.0,0.00010958,2]
[352197602,1738991445106,-500.0,0.00010958,2]
[352197603,1738991445115,-503.65748446,0.00010958,2]
[352197604,1738991445124,-2755.31,0.00010958,2]
[352197605,1738991445134,-500.0,0.00010958,2]
[352197606,1738991445143,-11974.57,0.00010958,2]
[352197607,1738991445153,-500.0,0.00010958,2]
[352197608,1738991445163,-500.0,0.00010958,2]
[352197609,1738991445172,-500.0,0.00010958,2]
[352197610,1738991445182,-500.0,0.00010958,2]
[352197611,1738991445192,-500.0,0.00010958,2]
[352197612,1738991445201,-1141.94,0.00010958,2]
[352197613,1738991445210,-861.32,0.00010959,2]
[352197614,1738991445220,-717.77,0.00010959,2]
[352197615,1738991445231,-598.14,0.00010959,2]
[352197616,1738991445241,-498.45,0.00010959,2]
[352197617,1738991445251,-415.38,0.00010959,2]
[352197618,1738991445261,-346.15,0.00010959,2]
[352197619,1738991445271,-288.45,0.00010959,2]
[352197620,1738991445280,-240.38,0.00010959,2]
[352197621,1738991445289,-500.0628284,0.00010973,2]
[352197622,1738991445299,-500.0,0.00010973,2]
[352197623,1738991445309,-500.0,0.00010973,2]
[352197624,1738991445318,-500.0,0.00010973,2]
[352197625,1738991445328,-500.0,0.00010973,2]
[352197626,1738991445338,-3643.56797304,0.00010986,2]
[352197627,1738991445347,-196.41597954,0.00010995,2]
[352197628,1738991445356,-500.0,0.00011027,2]
[352197629,1738991445366,-204.6928309,0.00011073,2]
[352197630,1738991445375,-501.32158879,0.00011073,2]
[352197631,1738991445384,-614.26348755,0.00011073,2]
[352197632,1738991445394,-500.98119301,0.00011073,2]
[352197633,1738991445403,-243.86574409,0.00011073,2]
[352197634,1738991445412,-500.40023323,0.00011073,2]
[352197635,1738991445422,-504.1994814,0.00011073,2]
[352197636,1738991445431,-500.0,0.00011073,2]
[352197637,1738991445440,-500.1649634,0.00011073,2]
[352197638,1738991445449,-500.0,0.00011073,2]
[352197639,1738991445459,-500.0,0.00011073,2]
[352197640,1738991445468,-501.62037964,0.00011073,2]
[352197641,1738991445477,-500.9013982,0.00011073,2]
[352197642,1738991445487,-10300.93,0.00011093,2]
[352197643,1738991445496,-10300.93,0.00011093,2]
[352197644,1738991445506,-10300.93,0.00011093,2]
[352197646,1738991445515,-10300.93,0.00011093,2]
[352197647,1738991445524,-10300.93,0.00011093,2]
[352197648,1738991445533,-10301.00850851,0.00011093,2]
[352197649,1738991445543,-500.0,0.00011094,2]
[352197650,1738991445552,-500.0,0.00011094,2]
[352197651,1738991445562,-500.0,0.00011094,2]
[352197652,1738991445571,-521.62924777,0.00011094,2]
[352197653,1738991445580,-151.0,0.00011094,2]
[352197654,1738991445590,-151.0,0.00011094,2]
[352197655,1738991445599,-519.856791,0.00011094,2]
[352197656,1738991445607,-519.856791,0.00011094,2]
[352197657,1738991445617,-151.0,0.00011094,2]
[352197658,1738991445625,-151.0,0.00011094,2]